fUSD/lending_fUSD_20251031
["ID","MTS","AMOUNT","RATE_DAILY","PERIOD"]
[392774532,1761940243592,-151.0,0.0002,7]
[392774533,1761940243601,-157.032668,0.0002,7]
[392774534,1761940243610,-151.0,0.0002,7]
[392774535,1761940243619,-151.0,0.0002,7]
[392774536,1761940243628,-151.0,0.0002,7]
[392774537,1761940243638,-151.0,0.0002,7]
[392774538,1761940243648,-151.0,0.0002,7]
[392774539,1761940243658,-151.0,0.0002,7]
[392774540,1761940243667,-151.0,0.0002,7]
[392774541,1761940243677,-151.0,0.0002,7]
[392774542,1761940243686,-151.0,0.0002,7]
[392774543,1761940243699,-151.0,0.0002,7]
[392774544,1761940243708,-151.0,0.0002,7]
[392774545,1761940243717,-151.0,0.0002,7]
[392774546,1761940243727,-151.0,0.0002,7]
[392774547,1761940243736,-151.0,0.0002,7]
[392774548,1761940243745,-151.0,0.0002,7]
[392774549,1761940243754,-151.0,0.0002,7]
[392774550,1761940243764,-151.0,0.0002,7]
[392774551,1761940243773,-151.0,0.0002,7]
[392774552,1761940243782,-151.0,0.0002,7]
[392774553,1761940243791,-151.0,0.0002,7]
[392774554,1761940243800,-151.0,0.0002,7]
[392774555,1761940243809,-153.340322,0.0002,7]
[392774556,1761940243817,-151.0,0.0002,7]
[392774557,1761940243826,-154.47121,0.0002,7]
[392774558,1761940243835,-151.0,0.0002,7]
[392774559,1761940243845,-151.0,0.0002,7]
[392774560,1761940243854,-156.543432,0.0002,7]
[392774561,1761940243863,-151.0,0.0002,7]
[392774562,1761940243873,-151.0,0.0002,7]
[392774563,1761940243883,-151.0,0.0002,7]
[392774564,1761940243892,-151.0,0.0002,7]
[392774565,1761940243903,-214.340867,0.0002,7]
[392774566,1761940243912,-151.0,0.0002,7]
[392774567,1761940243921,-151.0,0.0002,7]
[392774568,1761940243931,-151.0,0.0002,7]
[392774569,1761940243941,-218.541885,0.0002,7]
[392774570,1761940243950,-218.541885,0.0002,7]
[392774571,1761940243960,-218.541885,0.0002,7]
[392774572,1761940243970,-218.541885,0.0002,7]
[392774573,1761940243979,-151.0,0.0002,7]
[392774574,1761940243988,-151.0,0.0002,7]
[392774575,1761940243998,-169.620395,0.0002,7]
[392774576,1761940244009,-169.620395,0.0002,7]
[392774577,1761940244019,-169.620395,0.0002,7]
[392774578,1761940244029,-169.620395,0.0002,7]
[392774579,1761940244038,-155.805714,0.0002,7]
[392774580,1761940244048,-151.0,0.0002,7]
[392774581,1761940244057,-151.0,0.0002,7]
[392774582,1761940244067,-151.0,0.0002,7]
[392774583,1761940244076,-151.0,0.0002,7]
[392774584,1761940244085,-151.0,0.0002,7]
[392774585,1761940244094,-151.0,0.0002,7]
[392774586,1761940244104,-151.0,0.0002,7]
[392774587,1761940244113,-151.0,0.0002,7]
[392774588,1761940244123,-151.0,0.0002,7]
[392774589,1761940244133,-151.0,0.0002,7]
[392774590,1761940244142,-151.0,0.0002,7]
[392774591,1761940244153,-151.0,0.0002,7]
[392774592,1761940244163,-235.555324,0.0002,7]
[392774593,1761940244172,-151.0,0.0002,7]
[392774594,1761940244182,-235.555324,0.0002,7]
[392774595,1761940244191,-235.555324,0.0002,7]
[392774596,1761940244201,-971.271533,0.0002,7]
[392774597,1761940244210,-151.0,0.0002,7]
[392774598,1761940244219,-235.555324,0.0002,7]
[392774599,1761940244229,-971.271533,0.0002,7]
[392774600,1761940244238,-971.271533,0.0002,7]
[392774601,1761940244249,-971.271533,0.0002,7]
[392774602,1761940244262,-151.0,0.0002,7]
[392774603,1761940244272,-170.146387,0.0002,7]
[392774604,1761940244281,-153.692738,0.0002,7]
[392774605,1761940244291,-151.0,0.0002,7]
[392774606,1761940244302,-283.672849,0.0002,7]
[392774607,1761940244311,-151.0,0.0002,7]
[392774608,1761940244321,-151.0,0.0002,7]
[392774609,1761940244335,-283.672849,0.0002,7]
[392774610,1761940244344,-151.0,0.0002,7]
[392774611,1761940244354,-283.672849,0.0002,7]
[392774612,1761940244363,-151.0,0.0002,7]
[392774613,1761940244372,-283.672849,0.0002,7]
[392774614,1761940244382,-151.0,0.0002,7]
[392774615,1761940244391,-499.459487,0.0002,7]
[392774616,1761940244404,-151.0,0.0002,7]
[392774617,1761940244413,-151.0,0.0002,7]
[392774618,1761940244422,-499.459487,0.0002,7]
[392774619,1761940244431,-499.459487,0.0002,7]
[392774620,1761940244440,-499.459487,0.0002,7]
[392774621,1761940244449,-151.0,0.0002,7]
[392774622,1761940244459,-151.0,0.0002,7]
[392774623,1761940244472,-159.358683,0.0002,7]
[392774624,1761940244481,-176.50017,0.0002,7]
[392774625,1761940244491,-158.729556,0.0002,7]
[392774626,1761940244501,-151.0,0.0002,7]
[392774627,1761940244510,-159.358683,0.0002,7]
[392774628,1761940244519,-152.55367,0.0002,7]
[392774629,1761940244528,-176.50017,0.0002,7]
[392774630,1761940244537,-151.0,0.0002,7]
[392774631,1761940244546,-159.358683,0.0002,7]
[392774632,1761940244555,-176.50017,0.0002,7]
[392774633,1761940244564,-151.0,0.0002,7]
[392774634,1761940244573,-151.0,0.0002,7]
[392774635,1761940244583,-159.358683,0.0002,7]
[392774636,1761940244592,-176.50017,0.0002,7]
[392774637,1761940244601,-151.0,0.0002,7]
[392774638,1761940244609,-151.0,0.0002,7]
[392774639,1761940244618,-151.0,0.0002,7]
[392774640,1761940244628,-151.0,0.0002,7]
[392774641,1761940244637,-151.0,0.0002,7]
[392774642,1761940244648,-250.029375,0.0002,7]
[392774643,1761940244657,-161.972815,0.0002,7]
[392774644,1761940244666,-151.0,0.0002,7]
[392774645,1761940244675,-151.0,0.0002,7]
[392774646,1761940244684,-151.0,0.0002,7]
[392774647,1761940244693,-151.0,0.0002,7]
[392774648,1761940244702,-354.72307,0.0002,7]
[392774649,1761940244711,-151.0,0.0002,7]
[392774650,1761940244881,-354.72307,0.0002,7]
[392774651,1761940244891,-151.0,0.0002,7]
[392774652,1761940244902,-354.72307,0.0002,7]
[392774653,1761940244911,-152.771293,0.0002,7]
[392774654,1761940244921,-354.72307,0.0002,7]
[392774655,1761940244930,-153.429283,0.0002,7]
[392774656,1761940244939,-151.0,0.0002,7]
[392774657,1761940244948,-568.776526,0.0002,7]
[392774658,1761940244957,-568.776526,0.0002,7]
[392774659,1761940244966,-151.0,0.0002,7]
[392774660,1761940244975,-151.0,0.0002,7]
[392774661,1761940244984,-568.776526,0.0002,7]
[392774662,1761940244993,-568.776526,0.0002,7]
[392774663,1761940245002,-151.0,0.0002,7]
[392774664,1761940245011,-170.213072,0.0002,7]
[392774665,1761940245020,-156.746692,0.0002,7]
[392774666,1761940245029,-255.654991,0.0002,7]
[392774667,1761940245038,-255.654991,0.0002,7]
[392774668,1761940245048,-255.654991,0.0002,7]
[392774669,1761940245057,-255.654991,0.0002,7]
[392774670,1761940245067,-151.0,0.0002,7]
[392774671,1761940245077,-166.03466,0.0002,7]
[392774672,1761940245087,-151.0,0.0002,7]
[392774673,1761940245098,-1774.502489,0.0002,7]
[392774674,1761940245107,-151.0,0.0002,7]
[392774675,1761940245117,-1774.502489,0.0002,7]
[392774676,1761940245126,-1774.502489,0.0002,7]
[392774677,1761940245136,-1774.502489,0.0002,7]
[392774678,1761940245146,-151.0,0.0002,7]
[392774679,1761940245155,-151.0,0.0002,7]
[392774680,1761940245164,-151.0,0.0002,7]
[392774681,1761940245173,-151.0,0.0002,7]
[392774682,1761940245185,-158.442601,0.0002,7]
[392774683,1761940245194,-200.0,0.0002,2]
[392774684,1761940245203,-265.596028,0.0002,7]
[392774685,1761940245212,-265.596028,0.0002,7]
[392774686,1761940245221,-265.596028,0.0002,7]
[392774687,1761940245232,-151.0,0.0002,7]
[392774689,1761940245241,-265.596028,0.0002,7]
[392774690,1761940245251,-151.0,0.0002,7]
[392774691,1761940245266,-153.47339,0.0002,7]
[392774692,1761940245275,-151.0,0.0002,7]
[392774693,1761940245284,-153.753515,0.0002,7]
[392774695,1761940245296,-1215.994356,0.0002,7]
[392774697,1761940245305,-969.491943,0.0002,7]
[392774699,1761940245315,-156.271373,0.0002,7]
[392774701,1761940245324,-1215.994356,0.0002,7]
[392774703,1761940245334,-969.491943,0.0002,7]
[392774705,1761940245343,-157.899438,0.0002,7]
[392774707,1761940245353,-1215.994356,0.0002,7]
[392774709,1761940245363,-969.491943,0.0002,7]
[392774711,1761940245371,-1215.994356,0.0002,7]
[392774713,1761940245380,-969.491943,0.0002,7]
[392774715,1761940245390,-152.326873,0.0002,7]
[392774717,1761940245400,-152.624748,0.0002,7]
[392774718,1761940245409,-533.537283,0.0002,7]
[392774719,1761940245418,-151.0,0.0002,7]
[392774720,1761940245427,-533.537283,0.0002,7]
[392774721,1761940245436,-533.537283,0.0002,7]
[392774722,1761940245445,-151.0,0.0002,7]
[392774723,1761940245454,-151.0,0.0002,7]
[392774724,1761940245463,-151.0,0.0002,7]
[392774725,1761940245472,-533.537283,0.0002,7]
[392774726,1761940245481,-1794.991543,0.0002,7]
[392774727,1761940245490,-151.0,0.0002,7]
[392774728,1761940245502,-1794.991543,0.0002,7]
[392774729,1761940245512,-158.9468,0.0002,7]
[392774730,1761940245522,-151.0,0.0002,7]
[392774731,1761940245533,-1794.991543,0.0002,7]
[392774732,1761940245543,-151.0,0.0002,7]
[392774733,1761940245553,-151.0,0.0002,7]
[392774734,1761940245562,-1794.991543,0.0002,7]
[392774735,1761940245571,-151.0,0.0002,7]
[392774736,1761940245580,-151.0,0.0002,7]
[392774737,1761940245589,-151.0,0.0002,7]
[392774738,1761940245598,-151.0,0.0002,7]
[392774739,1761940245607,-151.0,0.0002,7]
[392774740,1761940245616,-151.0,0.0002,7]
[392774741,1761940245625,-151.0,0.0002,7]
[392774742,1761940245634,-151.0,0.0002,7]
[392774743,1761940245643,-151.0,0.0002,7]
[392774744,1761940245652,-1000.0,0.0002,7]
[392774745,1761940245661,-151.0,0.0002,7]
[392774746,1761940245671,-158.083204,0.0002,7]
[392774747,1761940245680,-532.666831,0.0002,7]
[392774748,1761940245689,-532.666831,0.0002,7]
[392774749,1761940245698,-532.666831,0.0002,7]
[392774750,1761940245708,-151.0,0.0002,7]
[392774751,1761940245716,-532.666831,0.0002,7]
[392774752,1761940245725,-151.0,0.0002,7]
[392774753,1761940245736,-158.954398,0.0002,7]
[392774754,1761940245745,-152.70355,0.0002,7]
[392774756,1761940245755,-151.0,0.0002,7]
[392774757,1761940245763,-151.0,0.0002,7]
[392774758,1761940245772,-151.0,0.0002,7]
[392774759,1761940245782,-163.776094,0.0002,7]
[392774760,1761940245791,-151.0,0.0002,7]
[392774761,1761940245801,-322.719866,0.0002,7]
[392774762,1761940245810,-151.0,0.0002,7]
[392774763,1761940245819,-151.0,0.0002,7]
[392774764,1761940245828,-151.0,0.0002,7]
[392774765,1761940245837,-151.0,0.0002,7]
[392774766,1761940245846,-322.719866,0.0002,7]
[392774767,1761940245855,-151.0,0.0002,7]
[392774768,1761940245864,-151.0,0.0002,7]
[392774769,1761940245873,-322.719866,0.0002,7]
[392774770,1761940245882,-151.0,0.0002,7]
[392774771,1761940245892,-151.0,0.0002,7]
[392774772,1761940245902,-322.719866,0.0002,7]
[392774773,1761940245911,-151.0,0.0002,7]
[392774774,1761940245920,-1000.0,0.00020116,2]
[392774775,1761940245930,-579.08,0.00020187,2]
[392774776,1761940245939,-162.380719,0.00020274,2]
[392774777,1761940245950,-225.97649717,0.00020318,7]
[392774778,1761940245968,-3000.0,0.00020466,2]
[392774779,1761940245991,-300.0,0.00020547,2]
[392774780,1761940246001,-21300.07,0.00020548,2]
[392774781,1761940246010,-171.477867,0.00020548,7]
[392774782,1761940246022,-151.0,0.00020548,7]
[392774783,1761940246033,-151.0,0.00020548,7]
[392774784,1761940246043,-477.23814323,0.000206,7]
[392774785,1761940246053,-1000.0,0.00020795,2]
[392774786,1761940246063,-268.02340902,0.00020822,2]
[392774787,1761940246072,-158.07,0.00020856,2]
[392774788,1761940246082,-172.30784605,0.0002089,2]
[392774789,1761940246092,-6226.96095283,0.000209,30]
[392774790,1761940246102,-964.71,0.00020967,2]
[392774791,1761940246111,-7292.79384357,0.00021,2]
[392774792,1761940246122,-1367.94530613,0.00021,2]
[392774793,1761940246131,-1181.15455055,0.00021,2]
[392774794,1761940246141,-194.9662443,0.00021,2]
[392774795,1761940246151,-160.0,0.00021,7]
[392774796,1761940246160,-350.0,0.00021,2]
[392774797,1761940246170,-1580.33858,0.00021,2]
[392774798,1761940246179,-10355.21,0.00021068,2]
[392774799,1761940246189,-625.0,0.0002107,2]
[392774800,1761940246198,-1000.0,0.00021227,2]
[392774801,1761940246209,-163.08705764,0.00021281,2]
[392774802,1761940246221,-891.01670954,0.000215,2]
[392774803,1761940246230,-500.0,0.00021534,2]
[392774804,1761940246240,-900.0,0.00021562,2]
[392774805,1761940246251,-1200.0,0.00021562,2]
[392774806,1761940246263,-179.463212,0.00021645,3]
[392774807,1761940246272,-154.730149,0.00021645,3]
[392774808,1761940246282,-152.530922,0.00021645,3]
[392774809,1761940246291,-152.530922,0.00021645,3]
[392774810,1761940246303,-247.654544,0.00021645,3]
[392774811,1761940246312,-400.688541,0.00021645,3]
[392774812,1761940246323,-477.23814323,0.000217,3]
[392774813,1761940246334,-5000.0,0.00021918,2]
[392774814,1761940246344,-600.0,0.00021918,4]
[392774815,1761940246354,-600.0,0.00021918,4]
[392774816,1761940246364,-600.0,0.00021918,4]
[392774817,1761940246373,-600.0,0.00021918,4]
[392774818,1761940246382,-709.2067465,0.00021918,4]
[392774819,1761940246392,-600.0,0.00021918,4]
[392774820,1761940246402,-600.0,0.00021918,4]
[392774821,1761940246411,-600.0,0.00021918,4]
[392774822,1761940246420,-600.0,0.00021918,4]
[392774823,1761940246430,-600.0,0.00021918,4]
[392774824,1761940246442,-600.0,0.00021918,4]
[392774825,1761940246453,-600.0,0.00021918,4]
[392774826,1761940246463,-600.0,0.00021918,4]
[392774827,1761940246472,-163.23512837,0.00021918,2]
[392774828,1761940246481,-221.38088418,0.00021918,2]
[392774829,1761940246492,-2370.43439838,0.00022,2]
[392774830,1761940246503,-160.97,0.00022,2]
[392774831,1761940246513,-12932.54,0.00022,7]
[392774832,1761940246522,-4354.84300716,0.00022,4]
[392774833,1761940246532,-1380.17670079,0.00022,15]
[392774834,1761940246542,-216.95,0.00022,2]
[392774835,1761940246552,-489.4381376,0.000221,2]
[392774836,1761940246562,-237.82240055,0.0002211,2]
[392774837,1761940246572,-500.0,0.0002219,2]
[392774838,1761940246581,-500.0,0.0002219,2]
[392774839,1761940246592,-500.0,0.0002219,2]
[392774840,1761940246602,-500.0,0.0002219,2]
[392774841,1761940246612,-500.0,0.0002219,2]
[392774842,1761940246621,-500.0,0.0002219,2]
[392774843,1761940246631,-500.0,0.0002219,2]
[392774844,1761940246640,-500.0,0.0002219,2]
[392774845,1761940246652,-500.0,0.0002219,2]
[392774846,1761940246661,-500.0,0.0002219,2]
[392774847,1761940246671,-500.0,0.0002219,2]
[392774848,1761940246680,-250.0,0.0002219,2]
[392774849,1761940246691,-250.0,0.0002219,2]
[392774850,1761940246700,-250.0,0.0002219,2]
[392774851,1761940246709,-250.0,0.0002219,2]
[392774852,1761940246718,-172.53209956,0.0002219,2]
[392774853,1761940246727,-179.463212,0.0002224,2]
[392774854,1761940246736,-154.730149,0.0002224,2]
[392774855,1761940246745,-152.530922,0.0002224,2]
[392774856,1761940246754,-152.530922,0.0002224,2]
[392774857,1761940246763,-247.654544,0.0002224,2]
[392774858,1761940246773,-400.688541,0.0002224,2]
[392774859,1761940246783,-151.23,0.00022466,2]
[392774860,1761940246791,-150.0,0.00022466,2]
[392774861,1761940246800,-150.0,0.00022466,2]
[392774862,1761940246809,-246.37342329,0.00022498,2]
[392774863,1761940246819,-150.0,0.00022499,2]
[392774864,1761940246828,-150.0,0.00022499,2]
[392774865,1761940246837,-150.0,0.00022499,2]
[392774866,1761940246846,-573.0,0.00022499,2]
[392774867,1761940246855,-3420.0,0.00022499,2]
[392774868,1761940246863,-820.0,0.00022499,2]
[392774869,1761940246872,-607.0,0.00022499,2]
[392774870,1761940246881,-1314.0,0.00022499,2]
[392774871,1761940246890,-1594.0,0.00022499,2]
[392774872,1761940246900,-905.0,0.00022499,2]
[392774873,1761940246909,-1271.0,0.00022499,2]
[392774874,1761940246918,-819.0,0.00022499,2]
[392774875,1761940246927,-6630.0,0.00022499,2]
[392774876,1761940246937,-2139.0,0.00022499,2]
[392774877,1761940246947,-559.0,0.00022499,2]
[392774878,1761940246956,-21922.68264798,0.000225,2]
[392774879,1761940246966,-179.463212,0.000225,5]
[392774880,1761940246975,-247.654544,0.000225,5]
[392774881,1761940246985,-400.688541,0.000225,5]
[392774882,1761940246994,-165.39,0.00022603,2]
[392774883,1761940247003,-3000.0,0.00022658,2]
[392774884,1761940247012,-517.50775534,0.0002271,2]
[392774885,1761940247022,-500.0,0.00022889,2]
[392774886,1761940247033,-9064.60982997,0.000229,2]
[392774887,1761940247044,-37297.90904371,0.00023,2]
[392774888,1761940247054,-1000.0,0.00023,14]
[392774889,1761940247063,-435.3144005,0.00023,2]
[392774890,1761940247073,-997.20878214,0.00023,2]
[392774891,1761940247082,-400.0,0.00023,2]
[392774892,1761940247090,-177.0,0.00023,7]
[392774893,1761940247099,-167.0,0.00023,7]
[392774894,1761940247108,-1580.33858,0.00023,2]
[392774895,1761940247117,-2559.0334135,0.000231,2]
[392774896,1761940247126,-40677.48021183,0.000232,2]
[392774897,1761940247136,-177.0,0.00023288,7]
[392774898,1761940247146,-548.65,0.00023388,2]
[392774899,1761940247155,-1203.83,0.00023388,2]
[392774900,1761940247164,-415.19,0.00023388,2]
[392774901,1761940247174,-337.66,0.00023388,2]
[392774902,1761940247184,-150.0,0.00023388,2]
[392774903,1761940247193,-150.0,0.00023388,2]
[392774904,1761940247202,-150.0,0.00023388,2]
[392774905,1761940247212,-12932.54,0.000234,7]
[392774906,1761940247221,-2000.0,0.000234,2]
[392774907,1761940247381,-285.4985072,0.00023649,2]
[392774908,1761940247391,-191.9188356,0.00023688,4]
[392774909,1761940247402,-51256.0,0.000237,2]
[392774910,1761940247412,-900.0,0.00023754,2]
[392774911,1761940247421,-1200.0,0.00023754,2]
[392774912,1761940247431,-1157.43,0.00023836,2]
[392774913,1761940247440,-216.95,0.00023907,2]
[392774914,1761940247449,-163.08705765,0.00023942,2]
[392774915,1761940247458,-177.0,0.00024164,7]
[392774916,1761940247467,-5516.0,0.000242,3]
[392774917,1761940247476,-168.39,0.00024213,2]
[392774918,1761940247485,-150.0,0.00024213,2]
[392774919,1761940247494,-150.0,0.00024213,2]
[392774920,1761940247503,-176.7,0.00024213,2]
[392774921,1761940247513,-176.7,0.00024213,2]
[392774922,1761940247522,-152.0,0.0002446,3]
[392774923,1761940247531,-158.26855468,0.00024521,2]
[392774924,1761940247540,-520.24,0.00024658,2]
[392774925,1761940247550,-1000.0,0.00024658,2]
[392774926,1761940247559,-151.0,0.00024658,7]
[392774927,1761940247569,-151.0,0.00024658,7]
[392774928,1761940247578,-179.463212,0.00024717,3]
[392774929,1761940247587,-154.730149,0.00024717,3]
[392774930,1761940247597,-152.530922,0.00024717,3]
[392774931,1761940247606,-152.530922,0.00024717,3]
[392774932,1761940247615,-151.174963,0.00024717,3]
[392774933,1761940247624,-247.654544,0.00024717,3]
[392774934,1761940247633,-400.688541,0.00024717,3]
[392774935,1761940247642,-158.26855468,0.0002474,2]
[392774936,1761940247652,-215.2,0.000248,2]
[392774937,1761940247661,-151.0,0.000248,7]
[392774938,1761940247671,-151.0,0.000248,7]
[392774939,1761940247680,-300.392269,0.000248,7]
[392774940,1761940247689,-151.0,0.000248,7]
[392774941,1761940247699,-151.0,0.000248,7]
[392774942,1761940247708,-623074.748889,0.000248,2]
[392774943,1761940247717,-5516.0,0.000248,5]
[392774944,1761940247726,-3000.0,0.0002485,2]
[392774945,1761940247736,-151.0,0.00024897,7]
[392774946,1761940247745,-151.0,0.000249,7]
[392774947,1761940247755,-151.0,0.000249,7]
[392774948,1761940247764,-151.0,0.000249,7]
[392774949,1761940247774,-157.632,0.000249,7]
[392774950,1761940247783,-151.0,0.000249,7]
[392774951,1761940247792,-158.210332,0.000249,7]
[392774952,1761940247801,-151.0,0.000249,7]
[392774953,1761940247811,-151.0,0.000249,7]
[392774954,1761940247820,-151.0,0.000249,7]
[392774955,1761940247829,-151.0,0.000249,7]
[392774956,1761940247838,-151.0,0.000249,7]
[392774957,1761940247847,-163.55857,0.000249,7]
[392774958,1761940247856,-151.0,0.000249,7]
[392774959,1761940247865,-152.981805,0.000249,7]
[392774960,1761940247874,-151.0,0.000249,7]
[392774961,1761940247883,-151.0,0.000249,7]
[392774962,1761940247892,-151.0,0.000249,7]
[392774963,1761940247902,-258.91022,0.000249,7]
[392774964,1761940247911,-151.0,0.000249,7]
[392774965,1761940247920,-151.0,0.000249,7]
[392774966,1761940247929,-196.530268,0.000249,7]
[392774967,1761940247938,-151.0,0.000249,7]
[392774968,1761940247947,-151.0,0.000249,7]
[392774969,1761940247956,-151.0,0.000249,7]
[392774970,1761940247966,-151.0,0.000249,7]
[392774971,1761940247975,-151.0,0.000249,7]
[392774972,1761940247985,-151.0,0.000249,7]
[392774973,1761940247994,-152.115133,0.000249,7]
[392774974,1761940248003,-151.0,0.000249,7]
[392774975,1761940248012,-151.0,0.000249,7]
[392774976,1761940248021,-151.0,0.000249,7]
[392774977,1761940248031,-160.357379,0.000249,7]
[392774978,1761940248040,-287.144348,0.000249,7]
[392774979,1761940248049,-292.281618,0.000249,7]
[392774980,1761940248058,-151.0,0.000249,7]
[392774981,1761940248067,-151.0,0.000249,7]
[392774982,1761940248076,-151.0,0.000249,7]
[392774983,1761940248085,-151.0,0.000249,7]
[392774984,1761940248094,-151.0,0.000249,7]
[392774985,1761940248103,-151.0,0.000249,7]
[392774986,1761940248113,-151.0,0.000249,7]
[392774987,1761940248122,-216.170369,0.000249,7]
[392774988,1761940248131,-216.170369,0.000249,7]
[392774989,1761940248140,-216.170369,0.000249,7]
[392774990,1761940248151,-216.170369,0.000249,7]
[392774991,1761940248160,-151.0,0.000249,7]
[392774992,1761940248169,-151.0,0.000249,7]
[392774993,1761940248178,-151.0,0.000249,7]
[392774994,1761940248188,-151.0,0.000249,7]
[392774995,1761940248198,-188.80236,0.000249,7]
[392774996,1761940248207,-151.0,0.000249,7]
[392774997,1761940248226,-151.0,0.000249,7]
[392774998,1761940248236,-245.157143,0.000249,7]
[392774999,1761940248245,-151.0,0.000249,7]
[392775000,1761940248258,-151.0,0.000249,7]
[392775001,1761940248267,-151.0,0.000249,7]
[392775002,1761940248277,-151.0,0.000249,7]
[392775003,1761940248286,-151.0,0.000249,7]
[392775004,1761940248297,-176.009488,0.000249,7]
[392775005,1761940248306,-153.558489,0.000249,7]
[392775006,1761940248316,-151.0,0.000249,7]
[392775007,1761940248325,-151.0,0.000249,7]
[392775008,1761940248337,-151.0,0.000249,7]
[392775009,1761940248347,-151.0,0.000249,7]
[392775010,1761940248357,-151.0,0.000249,7]
[392775011,1761940248367,-151.0,0.000249,7]
[392775012,1761940248376,-151.0,0.000249,7]
[392775013,1761940248385,-151.0,0.000249,7]
[392775014,1761940248395,-151.0,0.000249,7]
[392775015,1761940248405,-151.0,0.000249,7]
[392775016,1761940248415,-151.0,0.000249,7]
[392775017,1761940248424,-151.0,0.000249,7]
[392775018,1761940248434,-151.0,0.000249,7]
[392775019,1761940248443,-151.0,0.000249,7]
[392775020,1761940248452,-158.608999,0.000249,7]
[392775021,1761940248462,-151.0,0.000249,7]
[392775022,1761940248471,-151.0,0.000249,7]
[392775023,1761940248480,-151.0,0.000249,7]
[392775024,1761940248489,-151.0,0.000249,7]
[392775025,1761940248499,-151.0,0.000249,7]
[392775026,1761940248509,-151.0,0.000249,7]
[392775027,1761940248518,-151.0,0.000249,7]
[392775028,1761940248528,-151.0,0.000249,7]
[392775029,1761940248537,-151.0,0.000249,7]
[392775030,1761940248546,-151.0,0.000249,7]
[392775031,1761940248555,-151.0,0.000249,7]
[392775032,1761940248565,-151.0,0.000249,7]
[392775033,1761940248574,-151.0,0.000249,7]
[392775034,1761940248593,-151.0,0.000249,7]
[392775035,1761940248613,-151.0,0.000249,7]
[392775036,1761940248624,-243.208894,0.000249,7]
[392775037,1761940248634,-152.310382,0.000249,7]
[392775038,1761940248643,-218.541885,0.000249,7]
[392775039,1761940248655,-218.541885,0.000249,7]
[392775040,1761940248664,-218.541885,0.000249,7]
[392775041,1761940248674,-218.541885,0.000249,7]
[392775042,1761940248683,-151.0,0.000249,7]
[392775043,1761940248693,-162.835824,0.000249,7]
[392775044,1761940248702,-169.620395,0.000249,7]
[392775045,1761940248712,-169.620395,0.000249,7]